[Event "Late-Titled-Tuesday-Blitz-May-28-2024"]
[Site "Chess.com"]
[Date "2024.05.28"]
[Round "3"]
[White "NowInChess"]
[Black "robertoalejandro10"]
[Result "0-1"]
[WhiteElo "2220"]
[BlackElo "2501"]
[TimeControl "180+1"]
[EndTime "14:29:29 PDT"]
[Termination "robertoalejandro10 won by resignation"]

1. e4 {[%clk 0:03:00.9]} 1... c5 {[%clk 0:02:58.4]} 2. d3 {[%clk 0:03:00.6]}
2... g6 {[%clk 0:02:58.1]} 3. g3 {[%clk 0:03:01]} 3... Bg7 {[%clk 0:02:58.3]} 4.
Bg2 {[%clk 0:03:01.6]} 4... Nc6 {[%clk 0:02:59]} 5. f4 {[%clk 0:03:02]} 5... e6
{[%clk 0:02:58.8]} 6. Nf3 {[%clk 0:03:02.4]} 6... Nge7 {[%clk 0:02:59.4]} 7. O-O
{[%clk 0:03:02.4]} 7... O-O {[%clk 0:03:00.1]} 8. c3 {[%clk 0:03:00.7]} 8... d5
{[%clk 0:02:56.7]} 9. e5 {[%clk 0:03:00.1]} 9... d4 {[%clk 0:02:55.8]} 10. Qe2
{[%clk 0:02:51.1]} 10... Rb8 {[%clk 0:02:43.5]} 11. Nbd2 {[%clk 0:02:38]} 11...
b6 {[%clk 0:02:36.9]} 12. c4 {[%clk 0:02:23.1]} 12... b5 {[%clk 0:02:25.4]} 13.
cxb5 {[%clk 0:02:16.7]} 13... Rxb5 {[%clk 0:02:24.5]} 14. Nc4 {[%clk 0:02:16.1]}
14... Nb4 {[%clk 0:02:13.5]} 15. Ng5 {[%clk 0:01:51.2]} 15... Ba6 {[%clk
0:01:56.8]} 16. a3 {[%clk 0:01:40.4]} 16... Nbd5 {[%clk 0:01:36.9]} 17. Ne4
{[%clk 0:01:28.7]} 17... Nc6 {[%clk 0:01:34.2]} 18. Ncd6 {[%clk 0:01:22.1]}
18... Rb8 {[%clk 0:01:33.8]} 19. Nxc5 {[%clk 0:01:19.4]} 19... Bc8 {[%clk
0:00:57.5]} 20. Nce4 {[%clk 0:00:51.3]} 20... Na5 {[%clk 0:00:51.1]} 21. b4
{[%clk 0:00:40.7]} 21... Nb3 {[%clk 0:00:45.2]} 22. Ra2 {[%clk 0:00:36.7]} 22...
f5 {[%clk 0:00:30]} 23. exf6 {[%clk 0:00:29.8]} 23... Nxf6 {[%clk 0:00:28.4]}
24. Nxf6+ {[%clk 0:00:27.1]} 24... Bxf6 {[%clk 0:00:29.3]} 25. Nxc8 {[%clk
0:00:19.3]} 25... Qxc8 {[%clk 0:00:21.8]} 26. Rc2 {[%clk 0:00:18.7]} 26... Qd7
{[%clk 0:00:19.1]} 27. Bc6 {[%clk 0:00:16.8]} 27... Qe7 {[%clk 0:00:17]} 28. Bd5
{[%clk 0:00:13.5]} 28... exd5 {[%clk 0:00:12.1]} 29. Qxe7 {[%clk 0:00:05.9]}
29... Bxe7 {[%clk 0:00:13]} 30. Re1 {[%clk 0:00:06.5]} 30... Bf6 {[%clk
0:00:11.8]} 31. Rc6 {[%clk 0:00:05.9]} 31... a5 {[%clk 0:00:10.9]} 32. bxa5
{[%clk 0:00:04.2]} 32... Nxa5 {[%clk 0:00:10.9]} 33. Rc7 {[%clk 0:00:03.6]}
33... Rf7 {[%clk 0:00:08.5]} 34. Rxf7 {[%clk 0:00:02.5]} 34... Kxf7 {[%clk
0:00:08.6]} 35. Bd2 {[%clk 0:00:03.4]} 35... Nb3 {[%clk 0:00:08.7]} 36. Bb4
{[%clk 0:00:03.6]} 36... Re8 {[%clk 0:00:09]} 37. Rxe8 {[%clk 0:00:03.4]} 37...
Kxe8 {[%clk 0:00:09.1]} 38. Kf2 {[%clk 0:00:04.3]} 38... Be7 {[%clk 0:00:09.3]}
39. a4 {[%clk 0:00:05.2]} 39... Bxb4 {[%clk 0:00:09.5]} 40. a5 {[%clk
0:00:05.7]} 40... Bxa5 {[%clk 0:00:09.6]} 41. Kf3 {[%clk 0:00:06.6]} 41... Bb6
{[%clk 0:00:10.2]} 42. g4 {[%clk 0:00:07.5]} 42... Ke7 {[%clk 0:00:10.8]} 43. f5
{[%clk 0:00:08.4]} 43... Kf6 {[%clk 0:00:11.7]} 44. Kf4 {[%clk 0:00:08.8]} 44...
g5+ {[%clk 0:00:12]} 45. Kf3 {[%clk 0:00:08.9]} 45... Nc5 {[%clk 0:00:12.7]} 46.
h3 {[%clk 0:00:09.5]} 46... Nxd3 {[%clk 0:00:13.1]} 47. Ke2 {[%clk 0:00:10.4]}
47... Ne5 {[%clk 0:00:13.5]} 48. Kd2 {[%clk 0:00:11.3]} 48... h5 {[%clk
0:00:13.2]} 49. gxh5 {[%clk 0:00:11.3]} 49... Kxf5 {[%clk 0:00:13.4]} 50. h6
{[%clk 0:00:12.2]} 50... Kg6 {[%clk 0:00:14.1]} 51. h7 {[%clk 0:00:13.1]} 51...
Kxh7 {[%clk 0:00:14.7]} 52. Ke2 {[%clk 0:00:12.5]} 52... d3+ {[%clk 0:00:14.2]}
53. Kd2 {[%clk 0:00:12]} 53... Ba5+ {[%clk 0:00:14.5]} 54. Kd1 {[%clk 0:00:12]}
54... d2 {[%clk 0:00:14.1]} 55. Ke2 {[%clk 0:00:12]} 55... Kg6 {[%clk
0:00:12.9]} 56. Kd1 {[%clk 0:00:12.1]} 56... Kh5 {[%clk 0:00:13.6]} 57. Ke2
{[%clk 0:00:12.3]} 57... Kh4 {[%clk 0:00:14.3]} 58. Kd1 {[%clk 0:00:13]} 58...
Kxh3 {[%clk 0:00:15]} 59. Ke2 {[%clk 0:00:13.7]} 59... Kg3 {[%clk 0:00:15.7]}
60. Kd1 {[%clk 0:00:14.1]} 60... Kf2 {[%clk 0:00:16]} 61. Kc2 {[%clk 0:00:14.2]}
61... Ke2 {[%clk 0:00:15.6]} 0-1

[Event "Late-Titled-Tuesday-Blitz-May-28-2024"]
[Site "Chess.com"]
[Date "2024.05.28"]
[Round "3"]
[White "Abduzhaparov"]
[Black "Cuchulin"]
[Result "1/2-1/2"]
[WhiteElo "2460"]
[BlackElo "2225"]
[TimeControl "180+1"]
[EndTime "14:29:34 PDT"]
[Termination "Game drawn by repetition"]

1. Nf3 {[%clk 0:03:00.9]} 1... d5 {[%clk 0:02:57.4]} 2. c4 {[%clk 0:03:01.3]}
2... c6 {[%clk 0:02:56.7]} 3. d4 {[%clk 0:03:00.9]} 3... Nf6 {[%clk 0:02:55.8]}
4. e3 {[%clk 0:03:01.8]} 4... e6 {[%clk 0:02:55.3]} 5. b3 {[%clk 0:03:01.7]}
5... Be7 {[%clk 0:02:55.5]} 6. Bb2 {[%clk 0:03:02.6]} 6... O-O {[%clk
0:02:55.5]} 7. Nbd2 {[%clk 0:03:02.5]} 7... Nbd7 {[%clk 0:02:54.3]} 8. Bd3
{[%clk 0:03:02.4]} 8... Re8 {[%clk 0:02:53.9]} 9. O-O {[%clk 0:03:02.3]} 9...
Nf8 {[%clk 0:02:53.8]} 10. Ne5 {[%clk 0:03:01.9]} 10... Bd6 {[%clk 0:02:49.2]}
11. f4 {[%clk 0:03:01.7]} 11... N6d7 {[%clk 0:02:38.6]} 12. Qh5 {[%clk
0:02:54.2]} 12... f5 {[%clk 0:02:37.4]} 13. Qf7+ {[%clk 0:02:25.2]} 13... Kh8
{[%clk 0:02:36.9]} 14. Rf3 {[%clk 0:02:25.7]} 14... Qe7 {[%clk 0:02:26.5]} 15.
Rh3 {[%clk 0:02:22]} 15... Nxe5 {[%clk 0:02:10.7]} 16. Qxe7 {[%clk 0:02:15.2]}
16... Bxe7 {[%clk 0:01:59.1]} 17. fxe5 {[%clk 0:02:15.6]} 17... g6 {[%clk
0:01:54.4]} 18. Rf1 {[%clk 0:02:14.7]} 18... Bg5 {[%clk 0:01:54.1]} 19. Ba3
{[%clk 0:02:06.5]} 19... Nd7 {[%clk 0:01:51.4]} 20. Kh1 {[%clk 0:01:47.6]} 20...
a5 {[%clk 0:01:49.8]} 21. Bd6 {[%clk 0:01:46.8]} 21... a4 {[%clk 0:01:49.1]} 22.
b4 {[%clk 0:01:46.1]} 22... dxc4 {[%clk 0:01:41.4]} 23. Nxc4 {[%clk 0:01:41.4]}
23... b5 {[%clk 0:01:40]} 24. Na5 {[%clk 0:01:39.1]} 24... Ra6 {[%clk
0:01:31.2]} 25. Rc1 {[%clk 0:01:36.6]} 25... Nb6 {[%clk 0:01:20.6]} 26. Rxc6
{[%clk 0:01:32.8]} 26... Nd5 {[%clk 0:01:20.6]} 27. Bxb5 {[%clk 0:01:29.1]}
27... Rxc6 {[%clk 0:01:08.6]} 28. Bxc6 {[%clk 0:01:30]} 28... Rg8 {[%clk
0:01:04.7]} 29. Bxd5 {[%clk 0:01:28.6]} 29... exd5 {[%clk 0:01:04.2]} 30. b5
{[%clk 0:01:25.4]} 30... f4 {[%clk 0:01:03.1]} 31. exf4 {[%clk 0:01:23.2]} 31...
Bxh3 {[%clk 0:01:02.9]} 32. fxg5 {[%clk 0:01:17.9]} 32... Ra8 {[%clk 0:00:59.8]}
33. b6 {[%clk 0:00:46.5]} 33... Rxa5 {[%clk 0:00:58.7]} 34. b7 {[%clk
0:00:46.4]} 34... Rb5 {[%clk 0:00:58.9]} 35. b8=Q+ {[%clk 0:00:47.3]} 35... Rxb8
{[%clk 0:00:58.7]} 36. Bxb8 {[%clk 0:00:48.2]} 36... Bf5 {[%clk 0:00:53.6]} 37.
a3 {[%clk 0:00:46]} 37... Kg7 {[%clk 0:00:53.1]} 38. Kg1 {[%clk 0:00:44.8]}
38... Kf7 {[%clk 0:00:53.5]} 39. h3 {[%clk 0:00:45.4]} 39... Ke6 {[%clk
0:00:53.7]} 40. Kf2 {[%clk 0:00:42.5]} 40... Bc2 {[%clk 0:00:53.7]} 41. Ke3
{[%clk 0:00:41.9]} 41... Be4 {[%clk 0:00:51.9]} 42. g3 {[%clk 0:00:41.7]} 42...
Bg2 {[%clk 0:00:51.9]} 43. h4 {[%clk 0:00:41.4]} 43... Be4 {[%clk 0:00:51.9]}
44. Kd2 {[%clk 0:00:41.7]} 44... Bf3 {[%clk 0:00:51.7]} 45. Kc3 {[%clk 0:00:42]}
45... Bd1 {[%clk 0:00:51]} 46. Kb4 {[%clk 0:00:42.3]} 46... Kd7 {[%clk
0:00:48.4]} 47. Kc5 {[%clk 0:00:40.6]} 47... Bb3 {[%clk 0:00:48.3]} 48. Ba7
{[%clk 0:00:36.1]} 48... Ba2 {[%clk 0:00:47.8]} 49. Bb6 {[%clk 0:00:35.3]} 49...
Bb3 {[%clk 0:00:47.6]} 50. Ba5 {[%clk 0:00:35.6]} 50... Ba2 {[%clk 0:00:47.7]}
51. Bd2 {[%clk 0:00:35.9]} 51... Bb3 {[%clk 0:00:47.5]} 52. g4 {[%clk
0:00:36.4]} 52... Ba2 {[%clk 0:00:47.3]} 53. h5 {[%clk 0:00:36.7]} 53... Bb3
{[%clk 0:00:47.4]} 54. h6 {[%clk 0:00:37]} 54... Ba2 {[%clk 0:00:47.5]} 55. Be3
{[%clk 0:00:35.4]} 55... Bb3 {[%clk 0:00:47.2]} 56. Kb4 {[%clk 0:00:36.3]} 56...
Bc2 {[%clk 0:00:46.2]} 57. Kb5 {[%clk 0:00:34.3]} 57... Bb3 {[%clk 0:00:44.8]}
58. Kc5 {[%clk 0:00:34.4]} 58... Ba2 {[%clk 0:00:44.7]} 59. Bf4 {[%clk 0:00:31]}
59... Bb3 {[%clk 0:00:44.1]} 60. Kb6 {[%clk 0:00:31.3]} 60... Ba2 {[%clk
0:00:43.4]} 61. Kb7 {[%clk 0:00:31.6]} 61... Bb3 {[%clk 0:00:43.3]} 62. e6+
{[%clk 0:00:31.9]} 62... Kxe6 {[%clk 0:00:42.9]} 63. Kc8 {[%clk 0:00:32.8]}
63... Bc4 {[%clk 0:00:40.8]} 64. Kd8 {[%clk 0:00:32.2]} 64... Bb5 {[%clk
0:00:40.9]} 65. Be5 {[%clk 0:00:31.7]} 65... Bc6 {[%clk 0:00:40.8]} 66. Bf6
{[%clk 0:00:31.9]} 66... Bb5 {[%clk 0:00:40.8]} 67. Kc7 {[%clk 0:00:32.5]} 67...
Bc4 {[%clk 0:00:39.9]} 68. Bg7 {[%clk 0:00:31.3]} 68... Bd3 {[%clk 0:00:38.2]}
69. Kd8 {[%clk 0:00:31.4]} 69... Bb5 {[%clk 0:00:38.1]} 70. Be5 {[%clk
0:00:31.9]} 70... Bc6 {[%clk 0:00:37.3]} 71. Kc7 {[%clk 0:00:31.2]} 71... Bb5
{[%clk 0:00:37.8]} 72. Kb6 {[%clk 0:00:31]} 72... Bc4 {[%clk 0:00:38]} 73. Kc5
{[%clk 0:00:31.2]} 73... Bb3 {[%clk 0:00:36.4]} 74. Kb5 {[%clk 0:00:31.6]} 74...
Bc2 {[%clk 0:00:34.7]} 75. Kb4 {[%clk 0:00:31.8]} 75... Bd1 {[%clk 0:00:34.1]}
76. Kb5 {[%clk 0:00:31]} 76... Bc2 {[%clk 0:00:33.1]} 77. Kb4 {[%clk 0:00:30.8]}
77... Bb3 {[%clk 0:00:32.6]} 78. Ka5 {[%clk 0:00:31.1]} 78... Bc2 {[%clk
0:00:32.5]} 79. Kb4 {[%clk 0:00:32]} 1/2-1/2

[Event "Late-Titled-Tuesday-Blitz-May-28-2024"]
[Site "Chess.com"]
[Date "2024.05.28"]
[Round "3"]
[White "toninhojit"]
[Black "BogdanDeac"]
[Result "1-0"]
[WhiteElo "2544"]
[BlackElo "3072"]
[TimeControl "180+1"]
[EndTime "14:29:35 PDT"]
[Termination "toninhojit won on time"]

1. d4 {[%clk 0:03:00.9]} 1... Nf6 {[%clk 0:02:58.4]} 2. c4 {[%clk 0:03:00.9]}
2... g6 {[%clk 0:02:58.6]} 3. Nc3 {[%clk 0:03:01.1]} 3... Bg7 {[%clk 0:02:59]}
4. e4 {[%clk 0:03:01.1]} 4... d6 {[%clk 0:02:59.6]} 5. Be2 {[%clk 0:03:01.6]}
5... Nc6 {[%clk 0:02:58.8]} 6. d5 {[%clk 0:03:00.7]} 6... Ne5 {[%clk 0:02:58.1]}
7. h3 {[%clk 0:03:01.1]} 7... O-O {[%clk 0:02:54.1]} 8. Nf3 {[%clk 0:03:01.4]}
8... Nxf3+ {[%clk 0:02:52.6]} 9. Bxf3 {[%clk 0:03:02.3]} 9... e6 {[%clk
0:02:52.5]} 10. O-O {[%clk 0:03:02.9]} 10... Nd7 {[%clk 0:02:51.9]} 11. Be3
{[%clk 0:03:02.1]} 11... Nc5 {[%clk 0:02:50.3]} 12. Qd2 {[%clk 0:03:00.2]} 12...
a5 {[%clk 0:02:48.5]} 13. Rfe1 {[%clk 0:03:00.1]} 13... Re8 {[%clk 0:02:48]} 14.
Bh6 {[%clk 0:02:59.3]} 14... e5 {[%clk 0:02:43.9]} 15. Bxg7 {[%clk 0:02:56.3]}
15... Kxg7 {[%clk 0:02:44.8]} 16. Rab1 {[%clk 0:02:50.9]} 16... f5 {[%clk
0:02:37.2]} 17. b3 {[%clk 0:02:47.9]} 17... b6 {[%clk 0:02:33.8]} 18. a3 {[%clk
0:02:47.9]} 18... fxe4 {[%clk 0:02:30.5]} 19. Nxe4 {[%clk 0:02:46.6]} 19... Bf5
{[%clk 0:02:29.8]} 20. b4 {[%clk 0:02:43]} 20... Nd7 {[%clk 0:02:16.8]} 21. Ng5
{[%clk 0:02:29.1]} 21... Nf8 {[%clk 0:01:49.2]} 22. Be4 {[%clk 0:02:19.6]} 22...
h6 {[%clk 0:01:44.6]} 23. Bxf5 {[%clk 0:02:10.4]} 23... gxf5 {[%clk 0:01:43]}
24. Nf3 {[%clk 0:02:02.6]} 24... axb4 {[%clk 0:01:38]} 25. axb4 {[%clk
0:02:02.4]} 25... Ng6 {[%clk 0:01:38.6]} 26. c5 {[%clk 0:02:02.3]} 26... Qf6
{[%clk 0:01:35.3]} 27. cxd6 {[%clk 0:02:01.6]} 27... cxd6 {[%clk 0:01:35]} 28.
Rbc1 {[%clk 0:02:02]} 28... Nf4 {[%clk 0:01:33.1]} 29. Rc7+ {[%clk 0:02:01.7]}
29... Kg8 {[%clk 0:01:31]} 30. Kh2 {[%clk 0:01:50.6]} 30... Ra3 {[%clk
0:01:23.8]} 31. Re3 {[%clk 0:01:47.9]} 31... Raa8 {[%clk 0:01:16.6]} 32. g3
{[%clk 0:01:46.7]} 32... Ng6 {[%clk 0:01:16]} 33. Rec3 {[%clk 0:01:42.7]} 33...
f4 {[%clk 0:01:09.1]} 34. Rd7 {[%clk 0:01:38.1]} 34... fxg3+ {[%clk 0:00:47]}
35. fxg3 {[%clk 0:01:37.7]} 35... Re7 {[%clk 0:00:47.6]} 36. Rxe7 {[%clk
0:01:34.7]} 36... Nxe7 {[%clk 0:00:48.5]} 37. Nh4 {[%clk 0:01:31.5]} 37... Rf8
{[%clk 0:00:36.5]} 38. Rf3 {[%clk 0:01:31.2]} 38... Qg5 {[%clk 0:00:35.7]} 39.
Qf2 {[%clk 0:01:26.4]} 39... Rxf3 {[%clk 0:00:31.7]} 40. Qxf3 {[%clk 0:01:27.3]}
40... Qd2+ {[%clk 0:00:29]} 41. Ng2 {[%clk 0:01:27]} 41... Qxd5 {[%clk
0:00:21.8]} 42. Qf6 {[%clk 0:01:27.2]} 42... Nc6 {[%clk 0:00:14.1]} 43. Qg6+
{[%clk 0:01:19.9]} 43... Kf8 {[%clk 0:00:14.3]} 44. Qxh6+ {[%clk 0:01:20.5]}
44... Ke7 {[%clk 0:00:13.6]} 45. Qg7+ {[%clk 0:01:19.7]} 45... Qf7 {[%clk
0:00:12.7]} 46. Qg5+ {[%clk 0:01:17]} 46... Qf6 {[%clk 0:00:12.4]} 47. Qc1
{[%clk 0:01:16.9]} 47... Kd7 {[%clk 0:00:10]} 48. Qa3 {[%clk 0:01:11.9]} 48...
Nd4 {[%clk 0:00:08.7]} 49. Qa7+ {[%clk 0:01:08.8]} 49... Kc6 {[%clk 0:00:09]}
50. Qa4+ {[%clk 0:00:56.6]} 50... Kd5 {[%clk 0:00:08.5]} 51. Qa2+ {[%clk
0:00:50.3]} 51... Kc6 {[%clk 0:00:08.7]} 52. Qa4+ {[%clk 0:00:50.3]} 52... Kb7
{[%clk 0:00:03.3]} 53. Qd7+ {[%clk 0:00:48.9]} 53... Kb8 {[%clk 0:00:03.6]} 54.
Qe8+ {[%clk 0:00:42]} 54... Kc7 {[%clk 0:00:03.2]} 55. h4 {[%clk 0:00:34]} 55...
Qf2 {[%clk 0:00:02.2]} 56. Qe7+ {[%clk 0:00:25.3]} 56... Kc6 {[%clk 0:00:02.3]}
57. Qe8+ {[%clk 0:00:25.8]} 57... Kd5 {[%clk 0:00:02.6]} 58. Qg8+ {[%clk
0:00:25.6]} 58... Ke4 {[%clk 0:00:01.8]} 59. Qg4+ {[%clk 0:00:25.7]} 59... Kd3
{[%clk 0:00:01.6]} 60. Qg6+ {[%clk 0:00:24.2]} 1-0

[Event "Late-Titled-Tuesday-Blitz-May-28-2024"]
[Site "Chess.com"]
[Date "2024.05.28"]
[Round "3"]
[White "The_Machine04"]
[Black "jlf287"]
[Result "1-0"]
[WhiteElo "2808"]
[BlackElo "2509"]
[TimeControl "180+1"]
[EndTime "14:29:35 PDT"]
[Termination "The_Machine04 won by resignation"]

1. d4 {[%clk 0:03:00.9]} 1... d5 {[%clk 0:02:59.5]} 2. Nf3 {[%clk 0:03:01]} 2...
Nf6 {[%clk 0:02:59.6]} 3. e3 {[%clk 0:03:01]} 3... c5 {[%clk 0:02:58.9]} 4. c3
{[%clk 0:03:01.1]} 4... cxd4 {[%clk 0:02:55.5]} 5. exd4 {[%clk 0:03:02]} 5...
Bg4 {[%clk 0:02:54.6]} 6. Nbd2 {[%clk 0:03:01]} 6... Qc7 {[%clk 0:02:53.8]} 7.
h3 {[%clk 0:02:57.6]} 7... Bh5 {[%clk 0:02:53.1]} 8. g4 {[%clk 0:02:58]} 8...
Bg6 {[%clk 0:02:53.1]} 9. Ne5 {[%clk 0:02:58.7]} 9... Nfd7 {[%clk 0:02:43.3]}
10. f4 {[%clk 0:02:51.8]} 10... e6 {[%clk 0:02:39.2]} 11. Qf3 {[%clk 0:02:44.1]}
11... Nc6 {[%clk 0:01:52]} 12. Nxc6 {[%clk 0:02:37.9]} 12... bxc6 {[%clk
0:01:45.5]} 13. f5 {[%clk 0:02:38.2]} 13... exf5 {[%clk 0:01:38.5]} 14. gxf5
{[%clk 0:02:39.1]} 14... O-O-O {[%clk 0:01:35.2]} 15. fxg6 {[%clk 0:02:38.5]}
15... Re8+ {[%clk 0:01:35.3]} 16. Kd1 {[%clk 0:02:38.5]} 16... hxg6 {[%clk
0:01:35.6]} 17. Nb3 {[%clk 0:02:24]} 17... Nf6 {[%clk 0:01:32]} 18. Bf4 {[%clk
0:02:16]} 18... Bd6 {[%clk 0:01:30.3]} 19. Bxd6 {[%clk 0:02:15.3]} 19... Qxd6
{[%clk 0:01:30.7]} 20. Nc5 {[%clk 0:02:11.2]} 20... Re7 {[%clk 0:01:23.9]} 21.
Kc2 {[%clk 0:02:09.1]} 21... Rhe8 {[%clk 0:01:23.6]} 22. Bd3 {[%clk 0:02:02]}
22... Ne4 {[%clk 0:01:22.9]} 23. Bxe4 {[%clk 0:02:00.5]} 23... dxe4 {[%clk
0:01:23]} 24. Qe3 {[%clk 0:01:55.7]} 24... f5 {[%clk 0:01:22.5]} 25. Raf1 {[%clk
0:01:54.3]} 25... Kb8 {[%clk 0:01:10.6]} 26. Qf4 {[%clk 0:01:53.1]} 26... Qxf4
{[%clk 0:01:10.1]} 27. Rxf4 {[%clk 0:01:54]} 27... Rf8 {[%clk 0:01:07]} 28. h4
{[%clk 0:01:50.4]} 28... Kc7 {[%clk 0:01:03.2]} 29. Rg1 {[%clk 0:01:49.8]} 29...
Rf6 {[%clk 0:01:02.8]} 30. Kd2 {[%clk 0:01:48.5]} 30... Kd6 {[%clk 0:01:01.2]}
31. Ke3 {[%clk 0:01:48.6]} 31... Kd5 {[%clk 0:01:01]} 32. b3 {[%clk 0:01:48.8]}
32... a5 {[%clk 0:00:59.6]} 33. c4+ {[%clk 0:01:45.7]} 33... Kd6 {[%clk
0:01:00.2]} 34. Na4 {[%clk 0:01:44.8]} 34... Rb7 {[%clk 0:00:56.5]} 35. Nc3
{[%clk 0:01:44.5]} 35... Rb8 {[%clk 0:00:55.2]} 36. d5 {[%clk 0:01:35.4]} 36...
c5 {[%clk 0:00:53.1]} 37. Rg5 {[%clk 0:01:12.1]} 37... Rh8 {[%clk 0:00:51.7]}
38. Nb5+ {[%clk 0:01:05.4]} 38... Kd7 {[%clk 0:00:47]} 39. Rg2 {[%clk
0:00:55.8]} 39... Rh6 {[%clk 0:00:44.8]} 40. Rg1 {[%clk 0:00:54.9]} 40... Rf8
{[%clk 0:00:44.4]} 41. Kf2 {[%clk 0:00:38.2]} 41... Re8 {[%clk 0:00:38.5]} 42.
Rg5 {[%clk 0:00:37.4]} 42... Reh8 {[%clk 0:00:33.8]} 43. Kg3 {[%clk 0:00:37.1]}
43... Re8 {[%clk 0:00:34.5]} 44. Rf2 {[%clk 0:00:36.3]} 44... e3 {[%clk
0:00:31.3]} 45. Re2 {[%clk 0:00:36.5]} 45... Re4 {[%clk 0:00:32.2]} 46. Kf3
{[%clk 0:00:28.1]} 46... Rhxh4 {[%clk 0:00:29.5]} 47. Rxg6 {[%clk 0:00:28.4]}
47... Rh3+ {[%clk 0:00:22.7]} 48. Kg2 {[%clk 0:00:27]} 48... Rh7 {[%clk
0:00:18.4]} 49. Nc3 {[%clk 0:00:25]} 49... Re5 {[%clk 0:00:12.9]} 50. Kf3 {[%clk
0:00:24.7]} 50... Ke7 {[%clk 0:00:06.4]} 51. Kf4 {[%clk 0:00:24.2]} 51... Kf7
{[%clk 0:00:06.6]} 52. Rxg7+ {[%clk 0:00:23.5]} 52... Rxg7 {[%clk 0:00:03.9]}
53. Kxe5 {[%clk 0:00:23.6]} 53... Rg3 {[%clk 0:00:01.7]} 54. Kxf5 {[%clk
0:00:22.8]} 54... Ke7 {[%clk 0:00:01.9]} 55. Ke4 {[%clk 0:00:22.6]} 55... Kd6
{[%clk 0:00:01.6]} 56. Rxe3 {[%clk 0:00:22.6]} 56... Rg2 {[%clk 0:00:02]} 57.
Kd3 {[%clk 0:00:22.7]} 57... Rb2 {[%clk 0:00:01.4]} 58. Re6+ {[%clk 0:00:21.8]}
58... Kd7 {[%clk 0:00:02.3]} 59. Ra6 {[%clk 0:00:21.7]} 59... a4 {[%clk
0:00:01.7]} 60. Rxa4 {[%clk 0:00:21.9]} 60... Rc2 {[%clk 0:00:01.9]} 61. Ra6
{[%clk 0:00:21.6]} 1-0

[Event "Late-Titled-Tuesday-Blitz-May-28-2024"]
[Site "Chess.com"]
[Date "2024.05.28"]
[Round "3"]
[White "blueryder"]
[Black "jup1978"]
[Result "0-1"]
[WhiteElo "2172"]
[BlackElo "2422"]
[TimeControl "180+1"]
[EndTime "14:29:36 PDT"]
[Termination "jup1978 won by resignation"]

1. e4 {[%clk 0:03:00.9]} 1... c5 {[%clk 0:02:59.9]} 2. Nc3 {[%clk 0:03:00.1]}
2... Nc6 {[%clk 0:02:59.6]} 3. f4 {[%clk 0:03:00]} 3... g6 {[%clk 0:02:58.5]} 4.
Nf3 {[%clk 0:02:59.7]} 4... Bg7 {[%clk 0:02:59]} 5. Bc4 {[%clk 0:02:59.1]} 5...
e6 {[%clk 0:02:56.5]} 6. d3 {[%clk 0:02:58.4]} 6... Nge7 {[%clk 0:02:56.3]} 7.
Bb3 {[%clk 0:02:58.3]} 7... O-O {[%clk 0:02:55.2]} 8. O-O {[%clk 0:02:57.9]}
8... d5 {[%clk 0:02:55.8]} 9. e5 {[%clk 0:02:57.2]} 9... Na5 {[%clk 0:02:43.5]}
10. Ne2 {[%clk 0:02:54.7]} 10... a6 {[%clk 0:02:37.9]} 11. c3 {[%clk 0:02:52.6]}
11... Nxb3 {[%clk 0:02:37.1]} 12. axb3 {[%clk 0:02:50.3]} 12... b5 {[%clk
0:02:36.9]} 13. d4 {[%clk 0:02:50.2]} 13... cxd4 {[%clk 0:02:32.8]} 14. Nexd4
{[%clk 0:02:48.4]} 14... b4 {[%clk 0:02:33.1]} 15. Bd2 {[%clk 0:02:47.4]} 15...
Qb6 {[%clk 0:02:29.6]} 16. Kh1 {[%clk 0:02:46.3]} 16... Rb8 {[%clk 0:02:18.6]}
17. cxb4 {[%clk 0:02:41.3]} 17... Nf5 {[%clk 0:02:14.8]} 18. Nxf5 {[%clk
0:02:34.9]} 18... exf5 {[%clk 0:02:15.7]} 19. Bc3 {[%clk 0:02:30.7]} 19... Rd8
{[%clk 0:02:07.8]} 20. Nd4 {[%clk 0:02:30.1]} 20... Bf8 {[%clk 0:02:05.6]} 21.
Qe1 {[%clk 0:02:25.6]} 21... Be6 {[%clk 0:02:02.4]} 22. Qe2 {[%clk 0:01:38.5]}
22... Ra8 {[%clk 0:01:54.6]} 23. Qe1 {[%clk 0:01:33]} 23... Rdb8 {[%clk
0:01:52]} 24. Rf3 {[%clk 0:01:13.3]} 24... Bxb4 {[%clk 0:01:44.4]} 25. Qh4
{[%clk 0:01:07.7]} 25... Bf8 {[%clk 0:01:16.7]} 26. Rh3 {[%clk 0:01:03.3]} 26...
h5 {[%clk 0:01:16.4]} 27. Nf3 {[%clk 0:00:56.1]} 27... Qxb3 {[%clk 0:01:06.7]}
28. Ng5 {[%clk 0:00:54.2]} 28... Rb6 {[%clk 0:01:00.4]} 29. Rg1 {[%clk
0:00:43.7]} 29... Qc4 {[%clk 0:00:53.5]} 30. Rg3 {[%clk 0:00:35.9]} 30... Be7
{[%clk 0:00:49.5]} 31. Qh3 {[%clk 0:00:31.3]} 31... Qxf4 {[%clk 0:00:29.5]} 32.
Nf3 {[%clk 0:00:21.7]} 32... Kf8 {[%clk 0:00:22.4]} 33. Bd2 {[%clk 0:00:20.6]}
33... Qe4 {[%clk 0:00:20.4]} 34. Bh6+ {[%clk 0:00:19.2]} 34... Ke8 {[%clk
0:00:20.2]} 35. Ng5 {[%clk 0:00:18]} 35... Qxe5 {[%clk 0:00:17.9]} 36. Nf3
{[%clk 0:00:13.4]} 36... Qxb2 {[%clk 0:00:14.7]} 37. Be3 {[%clk 0:00:12.5]}
37... f4 {[%clk 0:00:14.6]} 38. Bxb6 {[%clk 0:00:11.4]} 38... Bxh3 {[%clk
0:00:13.9]} 39. Bd4 {[%clk 0:00:10.7]} 39... Qxd4 {[%clk 0:00:09.8]} 40. Nxd4
{[%clk 0:00:08.3]} 40... fxg3 {[%clk 0:00:09.9]} 41. hxg3 {[%clk 0:00:07.8]}
41... Be6 {[%clk 0:00:08.1]} 42. Re1 {[%clk 0:00:08.3]} 42... Kd7 {[%clk
0:00:08]} 43. Nf3 {[%clk 0:00:06.9]} 43... a5 {[%clk 0:00:08.2]} 44. Ne5+ {[%clk
0:00:06.6]} 44... Kd6 {[%clk 0:00:08.8]} 45. Nd3 {[%clk 0:00:07.1]} 45... a4
{[%clk 0:00:08.6]} 46. Nb2 {[%clk 0:00:07.7]} 46... a3 {[%clk 0:00:08.9]} 47.
Nd3 {[%clk 0:00:07.9]} 47... a2 {[%clk 0:00:08.8]} 48. Ra1 {[%clk 0:00:08.6]}
48... Bf6 {[%clk 0:00:08.4]} 49. Rxa2 {[%clk 0:00:08]} 49... Rxa2 {[%clk
0:00:07.5]} 50. Kh2 {[%clk 0:00:08.9]} 50... Be5 {[%clk 0:00:07.5]} 51. Nb4
{[%clk 0:00:08.2]} 51... Ra3 {[%clk 0:00:07.1]} 52. Nc2 {[%clk 0:00:08]} 52...
Rxg3 {[%clk 0:00:06.5]} 53. Kh1 {[%clk 0:00:07.6]} 53... Rc3 {[%clk 0:00:06.8]}
54. Ne1 {[%clk 0:00:07.9]} 54... Rc1 {[%clk 0:00:06.4]} 55. Kg1 {[%clk 0:00:07]}
55... Rxe1+ {[%clk 0:00:06.8]} 56. Kf2 {[%clk 0:00:07.6]} 56... Re4 {[%clk
0:00:07.2]} 57. Kf3 {[%clk 0:00:07.7]} 57... f5 {[%clk 0:00:07.6]} 0-1